bitfinex-derivatives/quotes_ETHF0:USTF0_20250112
["timestamp","ask_amount","ask_price","bid_price","bid_amount"]
[1736682170436,0.15443,3256.3,3256.2,41.01507]
[1736682171137,0.15443,3256.3,3256.2,45.82132361]
[1736682172433,0.15443,3256.3,3256.2,46.26422361]
[1736682173638,0.15443,3256.3,3256.2,5.46422361]
[1736682175241,0.4763,3256.5,3256.4,0.21506]
[1736682175540,0.4608,3256.6,3256.5,0.21505]
[1736682175935,0.21503,3256.9,3256.8,0.21503]
[1736682176235,0.4513,3256.9,3256.8,0.21503]
[1736682177237,0.60352543,3256.9,3256.8,0.21503]
[1736682177432,0.15222543,3256.9,3256.8,0.21503]
[1736682178236,1.392,3257.3,3257.2,0.215]
[1736682178442,0.21501,3257.2,3257.1,0.21501]
[1736682178836,0.215,3257.2,3257.1,0.21501]
[1736682180541,1.392,3257.3,3256.9,0.21502]
[1736682180542,0.21502,3257.0,3256.9,0.21502]
[1736682180840,0.21502,3257.0,3256.7,3.2078]
[1736682181043,0.4432,3256.9,3256.8,0.21503]
[1736682182147,0.4432,3256.9,3256.7,3.2078]
[1736682182346,0.21504,3256.7,3256.5,0.21505]
[1736682182549,0.21504,3256.7,3256.6,0.21504]
[1736682183042,1.12243,3256.8,3256.7,0.21504]
[1736682183948,1.12244,3256.8,3256.7,0.21504]
[1736682184151,4.74730799,3256.8,3256.7,0.21504]
[1736682185749,3.62486799,3256.8,3256.7,0.21504]
[1736682185937,4.21920168,3256.9,3256.5,0.4474]
[1736682186137,4.21920168,3256.9,3256.8,0.21503]
[1736682187249,0.59433369,3256.9,3256.8,0.21503]
[1736682188647,0.59433369,3256.9,3256.8,13.125043]
[1736682189248,0.15113369,3256.9,3256.8,13.125043]
[1736682190447,0.4369,3257.0,3256.9,0.21503]
[1736682191451,0.4369,3257.0,3256.9,5.01298088]
[1736682192954,0.59044327,3257.0,3256.9,5.01298088]
[1736682194249,0.15354327,3257.0,3256.9,5.01298088]
[1736682194752,0.4651,3257.4,3257.3,0.215]
[1736682194946,0.9199,3257.4,3257.3,0.215]
[1736682195144,3.62486799,3257.6,3257.5,0.21499]
[1736682195752,3.62486799,3257.7,3257.6,0.21498]
[1736682196054,3.62486799,3257.7,3257.5,0.21498]
[1736682196354,3.83984799,3257.7,3257.6,0.21498]
[1736682197255,0.21498,3257.6,3257.5,0.21498]
[1736682197456,0.4651,3257.9,3257.4,3.2078]
[1736682197650,0.4798,3257.5,3257.4,3.42279]
[1736682201355,0.9372,3257.5,3257.4,0.21499]
[1736682201958,1.15219,3257.5,3257.4,0.21499]
[1736682202152,0.9372,3257.5,3257.0,8.00575088]
[1736682202352,0.9372,3257.5,3257.3,0.21499]
[1736682202353,0.4721,3257.4,3257.3,0.21499]
[1736682204649,0.68709,3257.4,3257.3,0.21499]
[1736682204867,0.4721,3257.4,3257.3,0.21499]
[1736682205662,0.68709,3257.4,3257.3,0.21499]
[1736682206051,0.4721,3257.4,3257.3,0.21499]
[1736682207460,0.62893436,3257.4,3257.3,0.21499]
[1736682208669,0.62893436,3257.4,3257.3,0.215]
[1736682212867,0.15683436,3257.4,3257.3,0.215]
[1736682213470,0.15683436,3257.4,3257.3,0.6497]
[1736682215775,0.15683436,3257.4,3257.3,1.1279]
[1736682217978,0.15683436,3257.4,3257.3,4.3357]
[1736682218373,0.15683436,3257.4,3257.3,14.79638097]
[1736682219669,0.15683436,3257.4,3257.3,9.99843009]
[1736682220465,0.4682,3257.8,3257.7,0.21497]
[1736682221876,0.4682,3257.8,3257.7,5.00861426]
[1736682222778,0.61832767,3257.8,3257.7,5.00861426]
[1736682224579,0.61832767,3257.8,3257.7,8.21641426]
[1736682225275,0.15012767,3257.8,3257.7,8.21641426]
[1736682225879,0.15012767,3257.8,3257.7,9.41941426]
[1736682226081,0.4517,3258.1,3258.0,0.21495]
[1736682227973,0.4517,3258.1,3258.0,5.00517195]
[1736682229081,0.21494,3258.3,3258.2,0.21493]
[1736682230678,0.21494,3258.3,3257.9,4.79022195]
[1736682230871,0.21495,3258.1,3258.0,5.00517195]
[1736682231580,0.21495,3258.1,3258.0,4.79022195]
[1736682231978,1.92722,3258.4,3257.9,5.00518195]
[1736682231979,0.21495,3258.0,3257.9,5.00518195]
[1736682232280,0.65985,3258.0,3257.9,5.00518195]
[1736682233181,0.65985,3258.0,3257.9,0.21496]
[1736682233678,0.21496,3257.9,3257.8,0.21496]
[1736682233873,1.10276,3257.9,3257.8,0.21496]
[1736682234074,0.8878,3257.9,3257.8,0.21496]
[1736682234877,3.30019234,3257.9,3257.8,0.21496]
[1736682237478,0.8878,3257.9,3257.8,0.21496]
[1736682238678,3.30019234,3257.9,3257.8,0.21496]
[1736682240087,2.41239234,3257.9,3257.8,0.21496]
[1736682240289,2.41239234,3257.9,3257.8,1.11266]
[1736682240588,0.4526,3258.2,3258.1,0.21495]
[1736682242289,0.4526,3258.2,3258.1,5.86646553]
[1736682242884,0.21492,3258.5,3258.1,5.65151553]
[1736682243180,0.4758,3258.4,3258.3,0.21493]
[1736682245289,0.4758,3258.4,3258.3,13.05177845]
[1736682249301,0.4758,3258.4,3258.3,0.21493]
[1736682249498,2.41239234,3258.7,3258.2,5.0983048]
[1736682249707,2.28902334,3258.7,3258.6,3.42271]
[1736682251003,3.62486799,3259.0,3258.9,0.21489]
[1736682252501,3.2078,3259.2,3258.7,0.4532]
[1736682252707,0.4564,3259.3,3258.8,0.53725]
[1736682253007,0.4564,3259.3,3259.2,0.21487]
[1736682253505,3.62686799,3259.5,3259.2,0.21487]
[1736682253701,3.62686799,3259.5,3259.4,0.21486]
[1736682253903,4.08766799,3259.5,3259.4,0.21486]
[1736682254107,0.4628,3259.5,3259.4,0.21486]
[1736682254502,0.47788501,3259.5,3259.4,0.21486]
[1736682254707,0.59930916,3259.5,3259.4,0.21486]
[1736682255003,1.05640916,3259.5,3259.4,0.21486]
[1736682255806,0.13850916,3259.5,3259.4,0.21486]
[1736682260112,0.1806153,3259.5,3259.4,0.21486]
[1736682265309,0.22272144,3259.5,3259.4,3.42266]
[1736682266917,0.37526026,3259.5,3259.4,3.42266]
[1736682270623,0.4173664,3259.5,3259.4,3.42266]
[1736682273123,0.4173664,3259.5,3259.4,0.21486]
[1736682274522,0.4173664,3259.5,3259.4,41.01486]
[1736682276021,0.45947254,3259.5,3259.4,41.01486]
[1736682277031,0.45947254,3259.5,3259.4,0.21486]
[1736682279223,0.30493372,3259.5,3259.4,0.66296]
[1736682279420,4.08786799,3260.3,3259.7,0.5371]
[1736682279624,0.9242,3260.0,3259.9,0.21483]
[1736682280623,1.13902,3260.0,3259.9,0.21483]
[1736682280931,0.9242,3260.0,3259.9,0.21483]
[1736682281231,0.96630986,3260.0,3259.9,0.21483]
[1736682281825,0.21483,3259.9,3259.7,3.2078]
[1736682282027,0.66043,3259.9,3259.7,3.42264]
[1736682282332,0.25693986,3259.8,3259.7,3.42264]
[1736682282519,0.25693986,3259.8,3259.7,3.2078]
[1736682282923,0.21485,3259.7,3259.5,0.21485]
[1736682283126,0.04210986,3259.8,3259.1,3.6838]
[1736682283324,0.04210986,3259.5,3259.4,0.21485]
[1736682286631,0.084216,3259.5,3259.2,44.0078]
[1736682286832,0.4821,3259.4,3259.3,0.21487]
[1736682287536,0.566316,3259.4,3259.3,0.21487]
[1736682290534,1.483916,3259.4,3259.3,0.21487]
[1736682291830,1.52602214,3259.4,3259.3,0.21487]
[1736682293042,5.15089013,3259.4,3259.3,0.21487]
[1736682294338,0.12632214,3259.4,3259.3,0.21487]
[1736682294940,0.12632214,3259.4,3259.3,41.01487]
[1736682295938,0.12632214,3259.4,3259.3,45.80087006]
[1736682296244,0.12724718,3259.4,3259.3,45.80087006]
[1736682296941,0.28407348,3259.4,3259.3,45.80087006]
[1736682297244,0.32617962,3259.4,3259.3,46.57632288]
[1736682298150,0.32617962,3259.4,3259.3,5.77632288]
[1736682298441,0.54103962,3259.4,3259.3,5.77632288]
[1736682298637,0.32617962,3259.4,3259.3,5.77632288]
[1736682299837,0.32617962,3259.4,3259.3,5.00724057]
[1736682301342,5.15709233,3259.4,3259.3,0.21487]
[1736682302445,0.36828576,3259.4,3259.3,0.21487]
[1736682303435,0.36828576,3259.4,3259.1,8.00017057]
[1736682303649,0.21487,3259.2,3259.1,4.79237057]
[1736682304143,1.13077,3259.2,3259.1,4.79237057]
[1736682304348,1.34130442,3259.2,3259.1,4.79237057]
[1736682305547,0.21488,3259.1,3258.9,0.21489]
[1736682305857,0.21488,3259.1,3259.0,0.21489]
[1736682306047,1.34131442,3259.2,3259.0,0.21489]
[1736682306546,0.21053442,3259.1,3259.0,0.21489]
[1736682307249,0.42541442,3259.1,3259.0,0.21489]
[1736682307743,0.46752056,3259.1,3258.9,0.21489]
[1736682308144,0.25264056,3259.1,3259.0,0.21489]
[1736682308451,0.25264056,3259.1,3258.7,3.2078]
[1736682308643,0.03775056,3258.9,3258.7,3.2078]
[1736682308842,0.03775056,3258.9,3258.8,0.2149]
[1736682309151,0.25264056,3258.9,3258.8,0.2149]
[1736682310049,0.25264056,3258.9,3258.7,3.4227]
[1736682310351,0.25264056,3258.9,3258.8,0.2149]
[1736682310544,0.03775056,3258.9,3258.8,0.2149]
[1736682310957,0.18833233,3258.9,3258.8,0.2149]
[1736682311150,0.18833233,3258.9,3258.8,0.6906]
[1736682311547,0.18833233,3258.9,3258.8,0.2149]
[1736682313054,0.40322233,3258.9,3258.8,0.2149]
[1736682313359,0.50115885,3258.8,3258.7,8.00017057]
[1736682313556,0.50115885,3258.8,3258.7,3.2078]
[1736682313745,0.53890941,3258.8,3258.7,3.2078]
[1736682313945,0.32400941,3258.8,3258.7,3.42271]
[1736682314351,0.03775056,3258.8,3258.7,3.13645115]
[1736682314556,0.25265056,3258.8,3258.7,2.92154115]
[1736682314854,0.03775056,3258.8,3258.7,3.13645115]
[1736682315556,0.25265056,3258.8,3258.7,2.75154115]
[1736682316756,0.03775056,3258.8,3258.7,0.21491]
[1736682319049,0.03775056,3258.8,3258.6,3.2078]
[1736682319249,0.4654,3258.7,3258.6,3.42271]
[1736682319754,0.50315056,3258.7,3258.6,3.42271]
[1736682329460,0.65996307,3258.7,3258.6,3.42271]
[1736682332765,0.65996307,3258.7,3258.6,0.21491]
[1736682335967,0.87487307,3258.7,3258.6,0.21491]
[1736682336164,0.65996307,3258.7,3258.5,0.21491]
[1736682336363,0.87487307,3258.7,3258.5,0.21491]
[1736682336766,0.03775056,3258.6,3258.5,0.21491]
[1736682337075,0.25266056,3258.6,3258.5,0.21491]
[1736682337871,0.03775056,3258.6,3258.5,0.21491]
[1736682340973,0.25266056,3258.6,3258.5,0.21491]
[1736682341476,0.21492,3258.5,3258.4,0.21492]
[1736682341888,0.25267056,3258.5,3258.4,0.21492]
[1736682343170,0.03775056,3258.5,3258.3,3.6899]
[1736682343375,0.479,3258.4,3258.3,3.90483]
[1736682343770,0.69393,3258.4,3258.3,3.42273]
[1736682343966,0.73168056,3258.4,3258.3,3.42273]
[1736682344277,0.21495,3258.1,3258.0,5.00732057]
[1736682344479,0.4512,3258.3,3257.9,7.18533292]
[1736682344669,1.15415,3258.0,3257.9,7.18533292]
[1736682344869,1.19190056,3258.0,3257.9,7.18533292]
[1736682345278,1.19190056,3258.0,3257.9,7.40029292]
[1736682345683,0.21496,3257.9,3257.8,4.7977753]
[1736682345976,0.25271056,3257.9,3257.8,4.7977753]
[1736682348475,0.25271056,3257.9,3257.7,8.2205453]
[1736682348681,0.67147,3257.8,3257.7,8.2205453]
[1736682349071,0.70922056,3257.8,3257.7,8.2205453]
[1736682349479,0.70922056,3257.8,3257.7,8.0055753]
[1736682349679,0.70922056,3257.8,3257.7,8.2205453]
[1736682349974,0.49425056,3257.8,3257.7,8.2205453]
[1736682350784,0.49425056,3257.8,3257.7,3.42277]
[1736682351689,0.49425056,3257.8,3257.7,0.21497]
[1736682354285,0.70922056,3257.8,3257.6,5.0127453]
[1736682354493,0.70922056,3257.8,3257.7,0.21497]
[1736682354990,0.70922056,3257.8,3257.6,5.0127453]
[1736682355185,0.70922056,3257.8,3257.6,4.7977753]
[1736682355385,0.70922056,3257.8,3257.7,0.21497]
[1736682356195,0.70922056,3257.8,3257.6,5.0127453]
[1736682356693,0.49425056,3257.8,3257.6,4.7977753]
[1736682356889,0.70922056,3257.8,3257.6,5.0127553]
[1736682357089,0.03775056,3257.7,3257.6,5.0127553]
[1736682358291,0.03775056,3257.7,3257.6,0.21498]
[1736682362290,0.03775056,3257.7,3257.5,8.0055753]
[1736682362698,0.4585,3257.6,3257.5,3.42278]
[1736682363001,0.49625056,3257.6,3257.5,3.42278]
[1736682363702,0.49625056,3257.6,3257.5,3.2078]
[1736682363911,0.49625056,3257.6,3257.5,8.21491157]
[1736682366709,0.03775056,3257.6,3257.5,8.21491157]
[1736682367497,0.03775056,3257.6,3257.5,8.9410659]
[1736682368810,0.03775056,3257.6,3257.5,3.42279]
[1736682368998,0.03775056,3257.6,3257.5,3.2078]
[1736682369306,0.03775056,3257.6,3257.5,3.42279]
[1736682370309,0.03775056,3257.6,3257.5,8.21300404]
[1736682372419,0.47435056,3257.6,3257.5,8.21300404]
[1736682373012,0.62576747,3257.6,3257.5,8.21300404]
[1736682373409,0.84074747,3257.6,3257.5,8.21300404]
[1736682373715,0.62576747,3257.6,3257.5,3.42279]
[1736682373911,0.84074747,3257.6,3257.5,3.42279]
[1736682375413,0.62576747,3257.6,3257.5,3.42279]
[1736682375604,0.84074747,3257.6,3257.5,3.2078]
[1736682378916,0.84074747,3257.6,3257.5,3.42279]
[1736682379311,0.84074747,3257.6,3257.5,3.2078]
[1736682380115,0.84074747,3257.6,3257.5,3.42279]
[1736682380711,0.84074747,3257.6,3257.5,3.2078]
[1736682381518,0.84074747,3257.6,3257.5,3.42279]
[1736682382120,0.84074747,3257.6,3257.5,3.2078]
[1736682383719,0.18916747,3257.6,3257.5,3.42279]
[1736682384219,0.03775056,3257.6,3257.5,3.67182234]
[1736682384416,0.03775056,3257.6,3257.5,4.57042234]
[1736682384718,0.03775056,3257.6,3257.5,45.81162234]
[1736682385719,0.65095,3258.1,3257.9,0.21495]
[1736682385919,0.15441202,3258.0,3257.6,0.21498]
[1736682386113,0.15441202,3258.0,3257.9,0.21496]
[1736682387219,0.15441202,3258.0,3257.9,7.40220334]
[1736682387415,0.15441202,3258.0,3257.9,12.90948782]
[1736682390021,0.15441202,3258.0,3257.9,5.72224448]
[1736682392021,0.36936202,3258.0,3257.9,5.50728448]
[1736682392921,0.36936202,3258.0,3257.9,12.69900286]
[1736682394129,0.21496,3257.9,3257.8,4.79583178]
[1736682395025,2.56486409,3258.0,3257.7,4.79583178]
[1736682395321,0.21497,3257.8,3257.7,4.79583178]
[1736682396320,0.21497,3257.7,3257.6,4.79583178]
[1736682396525,1.56727,3257.7,3257.6,4.79583178]
[1736682397527,0.21498,3257.6,3257.5,8.00363178]
[1736682397719,0.21498,3257.6,3257.5,8.21862178]
[1736682397915,0.21498,3257.6,3257.5,4.79583178]
[1736682398815,3.76275207,3257.7,3257.4,4.79583178]
[1736682399125,0.21499,3257.5,3257.4,4.79583178]
[1736682400326,0.215,3257.3,3257.2,4.79583178]
[1736682407431,5.76953904,3257.5,3257.0,5.01085178]
[1736682407629,0.21501,3257.1,3257.0,5.01085178]
[1736682409336,1.60991,3257.2,3257.0,5.01085178]
[1736682410632,1.3949,3257.2,3257.0,5.01085178]
[1736682410830,0.21501,3257.1,3257.0,5.01085178]
[1736682411227,0.21501,3257.1,3257.0,4.79583178]
[1736682412536,0.21501,3257.1,3256.9,5.01085178]
[1736682412836,0.21501,3257.1,3257.0,0.21502]
[1736682413734,0.21502,3257.0,3256.9,5.01085178]
[1736682413934,0.21502,3257.1,3256.9,5.01085178]
[1736682414831,0.21502,3257.0,3256.9,5.01085178]
[1736682415230,0.21502,3257.0,3256.9,4.79583178]
[1736682415436,0.21502,3257.0,3256.9,5.01085178]
[1736682415735,0.21502,3257.0,3256.9,4.79583178]
[1736682416341,0.21502,3256.9,3256.8,4.79583178]
[1736682416834,0.21502,3256.9,3256.8,5.01086178]
[1736682417442,0.21502,3256.9,3256.8,0.21503]
[1736682417740,0.21502,3257.0,3256.7,5.01086178]
[1736682417941,0.4438,3256.8,3256.7,5.01086178]
[1736682418540,0.4438,3256.8,3256.7,0.21503]
[1736682418742,0.65883,3256.8,3256.6,8.01606178]
[1736682418942,0.4395,3256.7,3256.6,8.21867178]
[1736682419143,0.9101,3256.7,3256.6,8.21867178]
[1736682419637,1.12514,3256.7,3256.6,8.21867178]
[1736682420038,1.12514,3256.7,3256.6,3.42284]
[1736682420643,0.9101,3256.7,3256.6,3.42284]
[1736682420944,0.4395,3256.7,3256.6,3.42284]
[1736682422147,0.4395,3256.7,3256.6,0.21504]
[1736682422546,0.65883,3256.8,3256.7,0.21504]
[1736682422847,0.65883,3256.8,3256.6,3.2078]
[1736682423143,0.65883,3256.8,3256.7,0.21504]
[1736682423643,0.65884,3256.8,3256.7,0.21504]
[1736682425338,0.21504,3256.8,3256.7,0.21504]
[1736682425643,1.13842,3257.0,3256.9,0.21502]
[1736682426941,0.9234,3257.0,3256.9,0.21502]
[1736682427340,0.36585828,3257.1,3256.7,0.4454]
[1736682427640,0.36585828,3257.1,3257.0,0.21502]
[1736682427641,0.15084828,3257.1,3257.0,0.21502]
[1736682429348,6.06705207,3257.7,3257.6,0.21498]
[1736682429549,3.6566,3257.7,3257.6,0.21498]
[1736682430340,0.4488,3257.7,3257.6,0.21498]
[1736682430545,2.41045207,3258.1,3257.3,0.8924]
[1736682430546,2.41045207,3258.1,3257.3,5.3022]
[1736682430737,2.41045207,3258.1,3258.0,0.21495]
[1736682431544,2.41045207,3258.1,3258.0,41.01495]
[1736682431954,0.21491,3258.6,3258.0,45.59583178]
[1736682432451,0.21491,3258.6,3258.4,0.21492]
[1736682432648,0.6751,3258.8,3258.5,0.21491]
[1736682433451,0.6751,3258.8,3258.6,0.21491]
[1736682433652,0.21491,3258.7,3258.5,0.21491]
[1736682434152,0.4602,3258.8,3258.1,4.79583178]
[1736682434546,0.21494,3258.2,3258.1,5.01077178]
[1736682434746,3.2078,3258.5,3258.1,4.79583178]
[1736682434953,0.21493,3258.3,3258.2,0.21493]
[1736682435751,0.68713,3258.4,3258.2,0.21493]
[1736682436154,0.21493,3258.3,3258.2,0.21493]
[1736682436758,0.68713,3258.4,3258.2,0.21493]
[1736682437159,0.4722,3258.4,3258.3,0.21493]
[1736682437459,0.68713,3258.4,3258.2,0.21493]
[1736682438350,0.4722,3258.4,3257.9,5.68903178]
[1736682438553,0.4799,3258.3,3258.2,0.21494]
[1736682439759,0.4799,3258.3,3258.1,0.21494]
[1736682439957,0.4799,3258.3,3257.9,0.8932]
[1736682440162,0.4706,3258.2,3258.1,0.21494]
[1736682441256,0.4706,3258.2,3257.9,0.4422]
[1736682441566,0.4706,3258.2,3258.1,0.21494]
[1736682442456,0.4706,3258.2,3257.9,0.4422]
[1736682442858,0.4706,3258.2,3258.0,0.21495]
[1736682443052,0.4706,3258.2,3257.9,0.4422]
[1736682443257,0.4706,3258.2,3258.1,0.21494]
[1736682446865,0.4706,3258.2,3257.8,3.2078]
[1736682447260,0.4706,3258.2,3258.1,0.21494]
[1736682447464,0.62331807,3258.2,3258.1,0.21494]
[1736682451662,0.62331807,3258.2,3257.9,40.8]
[1736682451862,0.62331807,3258.2,3258.1,0.21494]
[1736682460481,0.4706,3258.2,3258.1,0.21494]
[1736682461082,0.62151278,3258.2,3258.1,0.21494]
[1736682464280,0.15091278,3258.2,3258.1,0.21494]
[1736682464585,0.15091278,3258.2,3258.1,0.65144]
[1736682466678,0.15091278,3258.2,3258.1,0.21494]
[1736682467387,0.61961278,3258.2,3258.1,0.21494]
[1736682469488,0.83455278,3258.2,3257.8,3.2078]
[1736682469685,0.83455278,3258.2,3258.1,0.21494]
[1736682470082,0.83455278,3258.2,3258.0,0.21495]
[1736682470283,0.83455278,3258.2,3258.1,0.21494]
[1736682470480,0.61961278,3258.2,3257.8,3.2078]
[1736682470686,0.83455278,3258.2,3258.0,0.21495]
[1736682471184,0.83455278,3258.2,3258.1,0.21494]
[1736682471383,0.83455278,3258.2,3257.8,3.2078]
[1736682471785,0.21495,3258.0,3257.8,3.2078]
[1736682472090,0.4342,3257.9,3257.8,3.42276]
[1736682472890,0.4342,3257.9,3257.8,0.21496]
[1736682473092,0.4342,3257.9,3257.8,3.42276]
[1736682473386,0.4342,3257.9,3257.8,8.21859178]
[1736682474483,0.4342,3257.9,3257.8,8.88799115]
[1736682474985,0.4342,3257.9,3257.8,8.67303115]
[1736682474986,0.64916,3257.9,3257.8,8.67303115]
[1736682475691,0.64916,3257.9,3257.8,5.46523115]
[1736682475990,0.64916,3257.9,3257.8,4.01843115]
[1736682476182,0.64916,3257.9,3257.8,3.29503115]
[1736682476588,0.80023851,3257.9,3257.8,3.29503115]
[1736682476986,0.58527851,3257.9,3257.2,5.00838153]
[1736682477290,0.215,3257.3,3257.2,5.00838153]
[1736682478185,0.215,3257.3,3257.2,0.215]
[1736682480892,1.367,3257.4,3257.1,4.79338153]
[1736682481185,0.215,3257.2,3257.1,4.79338153]
[1736682481391,0.21501,3257.1,3257.0,0.21501]
[1736682484694,0.21501,3257.1,3256.9,0.67331]
[1736682484893,0.21501,3257.1,3257.0,0.21502]
[1736682485097,1.367,3257.4,3256.9,0.67331]
[1736682485287,0.21502,3257.0,3256.9,0.67331]
[1736682485789,1.367,3257.4,3256.9,0.67331]
[1736682485991,0.21501,3257.2,3257.0,0.21501]
[1736682486292,2.62939394,3257.5,3257.3,0.21499]
[1736682486482,2.41440394,3257.5,3257.4,0.67329]
[1736682486882,2.62938394,3257.5,3257.4,0.67329]
[1736682487890,0.21498,3257.5,3257.4,0.67329]
[1736682488093,0.21498,3257.7,3257.6,0.21498]
[1736682488289,0.21498,3257.6,3257.5,0.21498]
[1736682488897,0.21498,3257.7,3257.6,0.21497]
[1736682489397,0.452,3257.8,3257.5,0.9045]
[1736682489602,0.66697,3257.8,3257.7,0.21497]
[1736682492692,0.452,3257.8,3257.5,0.9045]
[1736682492995,0.21497,3257.7,3257.6,0.21497]
[1736682493794,0.452,3257.8,3257.5,0.9045]
[1736682494003,0.817484,3257.8,3257.7,0.21497]
[1736682495099,0.21497,3257.7,3257.6,0.21497]
[1736682495601,0.21498,3257.6,3257.5,0.4363]
[1736682495901,0.21498,3257.6,3257.4,0.4583]
[1736682495902,0.21498,3257.5,3257.4,0.4583]
[1736682496493,0.21498,3257.5,3257.4,0.67329]
[1736682498798,0.21498,3257.5,3257.4,0.4583]
[1736682499399,0.21498,3257.5,3257.4,0.67329]
[1736682499600,0.21498,3257.5,3257.4,0.4583]
[1736682501303,0.21498,3257.5,3257.4,0.67329]
[1736682502006,0.4434,3257.6,3257.4,0.4583]
[1736682502205,0.65838,3257.6,3257.5,0.21498]
[1736682502603,0.21498,3257.5,3257.4,0.67329]
[1736682502906,0.21498,3257.5,3257.4,0.4583]
[1736682503105,0.4434,3257.6,3257.2,0.4387]
[1736682503303,0.215,3257.3,3257.2,1.0924]
[1736682504309,0.215,3257.3,3257.2,0.8774]
[1736682505211,0.215,3257.3,3257.2,1.0924]
[1736682506805,0.215,3257.3,3257.2,0.8774]
[1736682507908,0.215,3257.3,3257.2,0.4387]
[1736682508509,0.215,3257.2,3257.1,0.4709]
[1736682509008,0.215,3257.2,3257.1,0.68591]
[1736682509808,0.4456,3257.4,3257.1,0.4709]
[1736682510003,0.4456,3257.4,3257.3,0.215]
[1736682510206,0.36858913,3257.5,3257.4,0.21499]
[1736682510207,0.15359913,3257.5,3257.4,0.21499]
[1736682512408,0.36857913,3257.5,3257.4,0.21499]
[1736682513604,0.36857913,3257.5,3257.2,4.79338153]
[1736682513811,0.215,3257.4,3257.3,0.21499]
[1736682516211,0.36858913,3257.5,3257.4,0.21499]
[1736682517719,0.21499,3257.4,3257.3,5.00837153]
[1736682518215,0.21499,3257.4,3257.3,4.79338153]
[1736682519421,2.41440394,3257.4,3257.0,4.79338153]
[1736682519720,0.21501,3257.1,3257.0,4.79338153]
[1736682520519,3.2078,3257.2,3256.9,0.22741]
[1736682520821,0.21502,3257.0,3256.9,0.22741]
[1736682521722,0.21502,3257.0,3256.9,5.02079153]
[1736682522719,0.21502,3257.0,3256.9,4.80577153]
[1736682522919,0.21502,3257.0,3256.9,0.01239]
[1736682523621,0.21502,3257.0,3256.9,0.22741]
[1736682524518,1.11272,3257.0,3256.9,0.01239]
[1736682528426,0.8977,3257.0,3256.6,5.46692153]
[1736682528625,0.21504,3256.7,3256.6,5.46692153]
[1736682529828,0.21504,3256.7,3256.6,0.4585]
[1736682530027,0.21504,3256.7,3256.6,0.67354]
[1736682530625,0.21504,3256.7,3256.6,0.4585]
[1736682530940,0.21504,3256.6,3256.5,5.44763153]
[1736682531319,0.21504,3256.6,3256.5,4.79338153]
[1736682531521,0.21504,3256.6,3256.4,11.07056838]
[1736682531522,0.21505,3256.5,3256.4,8.67223153]
[1736682531729,0.66225,3256.5,3256.4,8.67223153]
[1736682532119,0.4472,3256.5,3256.4,8.67223153]
[1736682532321,3.31210394,3257.0,3256.4,8.45718153]
[1736682532521,0.21504,3256.7,3256.6,0.21504]
[1736682534233,0.4472,3256.9,3256.4,8.45718153]
[1736682534433,0.21505,3256.6,3256.5,0.21505]
[1736682534930,0.21503,3256.8,3256.7,0.21503]
[1736682537539,0.4472,3256.9,3256.4,8.45718153]
[1736682537738,2.41440394,3257.1,3256.4,8.45718153]
[1736682537933,2.62941394,3257.1,3257.0,0.21502]
[1736682539439,0.21501,3257.1,3257.0,0.21502]
[1736682540043,0.21501,3257.1,3257.0,0.65552]
[1736682540334,0.21501,3257.1,3257.0,0.4405]
[1736682540529,0.21502,3257.0,3256.9,4.79338153]
[1736682541839,0.21503,3256.8,3256.7,4.79338153]
[1736682542938,0.21504,3256.7,3256.6,0.21504]
[1736682543338,0.21504,3256.6,3256.5,5.46482153]
[1736682545339,0.21504,3256.6,3256.5,0.4564]
[1736682546341,0.21505,3256.5,3256.4,8.93128153]
[1736682546640,0.69385,3256.5,3256.4,8.93128153]
[1736682548044,0.21505,3256.5,3256.4,5.72348153]
[1736682551743,0.21505,3256.5,3256.4,0.9301]
[1736682552640,0.21506,3256.4,3256.3,4.79338153]
[1736682552844,0.66976,3256.4,3256.3,5.00844153]
[1736682553046,0.66976,3256.4,3256.3,0.21506]
[1736682553738,0.21506,3256.3,3256.2,8.69475153]
[1736682554347,0.21506,3256.4,3256.3,0.21506]
[1736682555638,0.21506,3256.3,3256.2,3.90137]
[1736682555842,0.69706,3256.3,3256.2,3.90137]
[1736682556038,0.69706,3256.3,3256.2,8.69475153]
[1736682557342,0.69706,3256.3,3256.2,8.47968153]
[1736682557647,0.69706,3256.3,3256.2,3.90137]
[1736682559354,0.69706,3256.3,3256.2,3.6863]
[1736682559648,0.69706,3256.3,3256.2,3.2078]
[1736682561248,0.482,3256.3,3256.1,45.59338153]
[1736682561551,0.21507,3256.2,3256.1,48.80118153]
[1736682562754,0.21507,3256.2,3256.1,54.19175547]
[1736682562949,0.21507,3256.2,3256.1,54.40683547]
[1736682564054,0.21507,3256.2,3256.1,56.80517232]
[1736682564250,0.21507,3256.2,3256.1,16.00517232]
[1736682564447,0.15517172,3256.5,3256.1,15.79009232]
[1736682564647,0.37022172,3256.5,3256.4,0.21506]
[1736682565550,0.21505,3256.5,3256.4,0.21506]
[1736682566749,0.21505,3256.5,3256.4,0.66816]
[1736682567357,0.21505,3256.5,3256.4,0.4531]
[1736682567558,0.37025246,3256.5,3256.4,0.66816]
[1736682572362,0.15520246,3256.5,3256.4,1.13736]
[1736682572562,2.41440394,3256.6,3256.5,0.21505]
[1736682572764,2.41440394,3256.6,3256.5,3.42285]
[1736682574270,0.21502,3257.1,3257.0,0.21502]
[1736682575959,0.21502,3257.1,3257.0,0.67072]
[1736682576369,0.21502,3257.1,3257.0,0.4557]
[1736682578068,2.41440394,3257.2,3256.9,5.22903872]
[1736682578069,0.21502,3257.0,3256.9,5.22903872]
[1736682578269,0.21502,3257.0,3256.9,0.4349]
[1736682578270,0.67622,3257.0,3256.9,0.4349]
[1736682578469,0.21502,3256.9,3256.8,5.27523872]
[1736682578666,0.21502,3256.9,3256.8,4.79413872]
[1736682578866,1.13162,3256.9,3256.8,4.79413872]
[1736682579561,3.33100394,3256.9,3256.6,5.95817872]
[1736682579869,0.21504,3256.7,3256.6,5.95817872]
[1736682583973,0.21504,3256.7,3256.6,4.79413872]